bitfinex/quotes_BTCUSD_20260127
["timestamp","ask_amount","ask_price","bid_price","bid_amount"]
[1769526576972,0.03358457,87965.0,87920.0,0.33994052]
[1769526577169,0.03358457,87965.0,87933.0,0.05686112]
[1769526577372,0.03358457,87965.0,87932.0,0.18497853]
[1769526577789,0.05684176,87964.0,87932.0,0.18497853]
[1769526577963,0.03358457,87963.0,87932.0,0.18497853]
[1769526578196,0.03358457,87963.0,87930.0,0.33994052]
[1769526578366,0.03358457,87963.0,87926.0,0.02732]
[1769526578568,0.03358457,87963.0,87927.0,0.18497853]
[1769526578749,0.00013991,87964.0,87926.0,0.02732]
[1769526578750,0.03358457,87962.0,87929.0,0.18497853]
[1769526579073,0.03583326,87959.0,87929.0,0.18497853]
[1769526579604,0.18405792,87960.0,87929.0,0.18497853]
[1769526579806,0.18405792,87960.0,87899.0,0.0003577]
[1769526579807,0.03583326,87948.0,87916.0,0.11684]
[1769526580028,0.03583326,87962.0,87919.0,0.05687004]
[1769526580224,0.03583326,87958.0,87921.0,0.05686892]
[1769526580427,0.03583326,87958.0,87926.0,0.05686571]
[1769526580561,0.03583326,87958.0,87930.0,0.05686309]
[1769526580760,0.03583326,87958.0,87922.0,0.05686858]
[1769526580961,0.03583326,87958.0,87920.0,0.33994052]
[1769526581161,0.03583326,87958.0,87927.0,0.0568648]
[1769526581386,0.03583326,87958.0,87928.0,0.18497853]
[1769526582342,0.03583326,87958.0,87930.0,0.33994052]
[1769526582526,0.03583326,87958.0,87932.0,0.18497853]
[1769526582735,0.03583326,87958.0,87924.0,0.18497853]
[1769526582935,0.03583326,87958.0,87933.0,0.18497853]
[1769526584599,0.03583326,87958.0,87934.0,0.18497853]
[1769526588172,0.02406208,87963.0,87938.0,0.18497853]
[1769526588350,0.02406208,87963.0,87940.0,0.1901496]
[1769526588552,0.0004,87966.0,87943.0,0.18497853]
[1769526588707,0.0004,87966.0,87946.0,0.00517107]
[1769526588907,0.0004,87967.0,87945.0,0.00517107]
[1769526589121,0.0004,87967.0,87943.0,0.05699457]
[1769526589122,0.0004,87967.0,87949.0,0.00517107]
[1769526589322,0.0004,87967.0,87951.0,0.00517107]
[1769526589529,0.0004,87967.0,87952.0,0.18497853]
[1769526589726,0.0004,87967.0,87943.0,0.00013991]
[1769526589727,0.00156608,87952.0,87943.0,0.18511844]
[1769526589953,0.00156608,87952.0,87944.0,0.11684]
[1769526590154,0.02406208,87958.0,87944.0,0.11684]
[1769526590476,0.02406208,87958.0,87945.0,0.18497853]
[1769526590886,0.02406208,87966.0,87945.0,0.18497853]
[1769526592181,0.02406208,87966.0,87945.0,0.1901496]
[1769526592394,0.02406208,87966.0,87946.0,0.00517107]
[1769526592599,0.0004,87967.0,87949.0,0.1901496]
[1769526593964,0.02406208,87966.0,87943.0,0.00013991]
[1769526594169,0.18405792,87964.0,87934.0,0.18497853]
[1769526594334,0.00013263,87964.0,87935.0,0.00966898]
[1769526594534,0.00013263,87964.0,87943.0,0.1958802]
[1769526594715,0.00013263,87964.0,87947.0,0.1958802]
[1769526595080,0.00013263,87964.0,87949.0,0.1958802]
[1769526595402,0.33994052,87980.0,87920.0,0.43994052]
[1769526595605,0.02403554,87951.0,87923.0,0.00966898]
[1769526595807,0.02403554,87951.0,87924.0,0.20554918]
[1769526596094,0.33994052,87960.0,87924.0,0.20554918]
[1769526596095,0.02403554,87958.0,87924.0,0.20554918]
[1769526596204,0.02403554,87947.0,87924.0,0.20554918]
[1769526596633,0.02403554,87948.0,87924.0,0.20554918]
[1769526596833,0.0385,87998.0,87924.0,0.20554918]
[1769526596834,0.02403554,87944.0,87924.0,0.1958802]
[1769526597033,0.05685649,87941.0,87924.0,0.1958802]
[1769526597231,0.05685649,87941.0,87920.0,0.00013263]
[1769526597232,0.18227768,87955.0,87920.0,0.00013263]
[1769526597524,0.1168,87957.0,87920.0,0.00013263]
[1769526597525,0.02403554,87948.0,87920.0,0.00013263]
[1769526597723,0.02403554,87941.0,87920.0,0.19601283]
[1769526597935,0.02403554,87941.0,87922.0,0.1958802]
[1769526598133,0.02403554,87941.0,87920.0,0.00013263]
[1769526598134,0.05685228,87948.0,87924.0,0.21004617]
[1769526598336,0.05685129,87949.0,87924.0,0.21004617]
[1769526598540,0.03649364,87955.0,87924.0,0.21004617]
[1769526598541,0.18227768,87951.0,87924.0,0.21004617]
[1769526598746,0.02403554,87945.0,87924.0,0.1958802]
[1769526599735,0.05685401,87945.0,87924.0,0.1958802]
[1769526599940,0.18227768,87950.0,87924.0,0.1958802]
[1769526600143,0.18227768,87940.0,87920.0,0.00013263]
[1769526600391,0.02403554,87939.0,87921.0,0.1958802]
[1769526601475,0.10632996,88003.0,87920.0,0.00013263]
[1769526601476,0.02403554,87954.0,87929.0,0.33994052]
[1769526601816,0.16199462,87977.0,87940.0,0.1958802]
[1769526601817,0.02403554,87961.0,87940.0,0.1958802]
[1769526602033,0.33994052,87960.0,87939.0,0.00857383]
[1769526602165,0.33994052,87960.0,87921.0,0.01416597]
[1769526602166,0.02403554,87960.0,87921.0,0.01416597]
[1769526602369,0.02403554,87965.0,87924.0,0.1958802]
[1769526602569,0.02403554,87953.0,87924.0,0.1958802]
[1769526602805,0.02403554,87953.0,87925.0,0.0186643]
[1769526603009,0.02403554,87953.0,87927.0,0.0186643]
[1769526603215,0.02403554,87953.0,87930.0,0.1958802]
[1769526603414,0.05684111,87965.0,87934.0,0.1958802]
[1769526603614,0.0003577,87974.0,87936.0,0.1958802]
[1769526603615,0.18227768,87967.0,87936.0,0.1958802]
[1769526603941,0.18227768,87957.0,87936.0,0.1958802]
[1769526604128,0.02403554,87959.0,87929.0,0.1958802]
[1769526604310,0.33994052,87960.0,87920.0,0.19601283]
[1769526604483,0.02403554,87941.0,87920.0,0.19601283]
[1769526604683,0.02403554,87940.0,87920.0,0.19601283]
[1769526605452,0.02403554,87938.0,87920.0,0.00013263]
[1769526605608,0.02403554,87938.0,87920.0,0.19601283]
[1769526606200,0.02403554,87951.0,87912.0,0.1958802]
[1769526606415,0.02403554,87931.0,87918.0,0.02746002]
[1769526606625,0.02403554,87938.0,87900.0,0.1958802]
[1769526606844,0.33994052,87940.0,87900.0,0.1958802]
[1769526606845,0.02403554,87931.0,87900.0,0.1958802]
[1769526607041,0.05686454,87929.0,87900.0,0.1958802]
[1769526607376,0.02403554,87927.0,87900.0,0.1958802]
[1769526608144,0.02403554,87927.0,87900.0,0.2145445]
[1769526608349,0.02403554,87927.0,87900.0,0.33994052]
[1769526608553,0.02403554,87927.0,87904.0,0.0186643]
[1769526608731,0.02403554,87927.0,87906.0,0.0186643]
[1769526608947,0.00013978,87931.0,87913.0,0.1958802]
[1769526609153,0.00013978,87931.0,87916.0,0.02320039]
[1769526609357,0.18227768,87963.0,87931.0,0.00013978]
[1769526609562,0.02403554,87954.0,87931.0,0.19601998]
[1769526609773,0.05684902,87953.0,87931.0,0.19601998]
[1769526609998,0.02403554,87952.0,87931.0,0.19601998]
[1769526610173,0.02403554,87951.0,87931.0,0.1958802]
[1769526610581,0.02403554,87948.0,87925.0,0.02320039]
[1769526610788,0.02403554,87948.0,87926.0,0.21908059]
[1769526610991,0.40968995,87947.0,87902.0,0.1958802]
[1769526611210,0.02403554,87938.0,87900.0,0.1]
[1769526611420,0.02403554,87936.0,87906.0,0.02320039]
[1769526611630,0.02403554,87936.0,87909.0,0.1958802]
[1769526611900,0.02403554,87936.0,87913.0,0.1958802]
[1769526612240,0.02403554,87936.0,87914.0,0.02320039]
[1769526612442,0.02403554,87942.0,87917.0,0.1958802]
[1769526612644,0.02403554,87942.0,87917.0,0.21922037]
[1769526612856,0.22739298,87954.0,87917.0,0.00013978]
[1769526612857,0.05686269,87932.0,87917.0,0.00013978]
[1769526613062,0.02403554,87930.0,87917.0,0.00013978]
[1769526613266,0.03649364,87949.0,87917.0,0.00013978]
[1769526613267,0.02403554,87950.0,87919.0,0.02320039]
[1769526613470,0.18227768,87947.0,87917.0,0.00013978]
[1769526613664,0.18227768,87944.0,87917.0,0.00013978]
[1769526614032,0.02403554,87941.0,87917.0,0.19601998]
[1769526614260,0.33994052,87950.0,87917.0,0.19601998]
[1769526614261,0.02403554,87967.0,87941.0,0.00857383]
[1769526614461,0.02403554,87967.0,87939.0,0.1958802]
[1769526614462,0.03649364,87965.0,87939.0,0.1958802]
[1769526614665,0.02403554,87960.0,87939.0,0.1958802]
[1769526614866,0.02403554,87957.0,87931.0,0.1958802]
[1769526615269,0.07482634,87968.0,87933.0,0.1958802]
[1769526615391,0.05684319,87962.0,87936.0,0.02320039]
[1769526615595,0.05684451,87960.0,87939.0,0.1958802]
[1769526615789,0.02403554,87963.0,87940.0,0.02320039]
[1769526616032,0.05684531,87958.0,87937.0,0.1958802]
[1769526616209,0.0808809,87958.0,87937.0,0.1958802]
[1769526616415,0.02403554,87958.0,87937.0,0.1958802]
[1769526616608,0.02403554,87958.0,87937.0,0.21908059]
[1769526616813,0.0808747,87968.0,87938.0,0.02320039]
[1769526617018,0.03685134,87974.0,87941.0,0.1958802]
[1769526617189,0.02403554,87972.0,87943.0,0.1958802]
[1769526617394,0.18227768,87972.0,87945.0,0.02320039]
[1769526617633,0.0003577,87974.0,87948.0,0.1958802]
[1769526617833,0.0003577,87974.0,87952.0,0.1958802]
[1769526618008,0.0003577,87974.0,87955.0,0.02320039]
[1769526618227,0.0003577,87974.0,87955.0,0.21908059]
[1769526618590,0.05733272,87974.0,87955.0,0.21908059]
[1769526618795,0.00049764,87974.0,87955.0,0.1958802]
[1769526619013,0.02453318,87974.0,87955.0,0.1958802]
[1769526620873,0.00049764,87974.0,87955.0,0.1958802]
[1769526621079,0.00049764,87974.0,87956.0,0.21908059]
[1769526621628,0.00049764,87974.0,87958.0,0.1958802]
[1769526621925,0.00049764,87974.0,87962.0,0.1958802]
[1769526622261,0.02264018,87972.0,87934.0,0.18142939]
[1769526622501,0.00049764,87974.0,87920.0,0.1]
[1769526622502,0.21692031,87962.0,87937.0,0.02377832]
[1769526622716,0.02406635,87962.0,87939.0,0.02377832]
[1769526622919,0.02264018,87970.0,87942.0,0.18142939]
[1769526623126,0.02264018,87970.0,87920.0,0.1]
[1769526623127,0.00049764,87974.0,87946.0,0.18142939]
[1769526623329,0.00049764,87974.0,87949.0,0.02377832]
[1769526623518,0.00049764,87974.0,87952.0,0.18142939]
[1769526623919,0.05733303,87974.0,87952.0,0.18142939]
[1769526624120,0.00049764,87974.0,87952.0,0.18142939]
[1769526625778,0.00066844,87974.0,87952.0,0.18142939]
[1769526626437,0.02435241,87974.0,87952.0,0.18142939]
[1769526626841,0.0811877,87974.0,87952.0,0.18142939]
[1769526627149,0.02368397,87973.0,87952.0,0.18142939]
[1769526627468,0.02368397,87973.0,87952.0,0.20630754]
[1769526627891,0.00066844,87974.0,87954.0,0.19331689]
[1769526628103,0.00066844,87974.0,87930.0,0.33994052]
[1769526628104,0.00066844,87974.0,87957.0,0.02487815]
[1769526628304,0.00066844,87974.0,87958.0,0.21819504]
[1769526629131,0.00066844,87974.0,87932.0,0.22400924]
[1769526629132,0.05683633,87972.0,87935.0,0.05685978]
[1769526629340,0.02368397,87970.0,87939.0,0.02487815]
[1769526629541,0.02368397,87970.0,87942.0,0.19331689]
[1769526629764,0.02395217,87970.0,87945.0,0.02487815]
[1769526629942,0.02395217,87970.0,87948.0,0.19331689]
[1769526630256,0.18051177,87969.0,87951.0,0.02487815]
[1769526630401,0.20419574,87969.0,87951.0,0.02487815]
[1769526630587,0.20446394,87969.0,87952.0,0.19331689]
[1769526630791,0.02395217,87969.0,87952.0,0.19331689]
[1769526631234,0.0004,87984.0,87969.0,0.20189072]
[1769526631552,0.02333334,87989.0,87980.0,0.02487815]
[1769526631553,0.0002603,87989.0,87980.0,0.02487815]
[1769526631845,0.0001,87998.0,87983.0,0.21819504]
[1769526632728,0.0001,87998.0,87985.0,0.19331689]
[1769526632940,0.0001,87998.0,87987.0,0.19331689]
[1769526633155,0.0001,87998.0,87987.0,0.19345683]
[1769526633387,0.0570758,88005.0,87987.0,0.19345683]
[1769526633388,0.0002603,88005.0,87987.0,0.02501809]
[1769526633597,0.0002603,88005.0,87990.0,0.19331689]
[1769526633797,0.0004,88008.0,87994.0,0.19331689]
[1769526634054,0.0004,88008.0,87998.0,0.19331689]
[1769526634275,0.0004,88008.0,88001.0,0.19331689]
[1769526636172,0.0004,88008.0,88000.0,0.02487815]
[1769526636508,0.0004,88008.0,88000.0,0.21819504]
[1769526636717,0.00450135,88020.0,88008.0,0.0004]
[1769526636928,0.00450135,88020.0,88010.0,0.19331689]
[1769526637306,0.00450135,88020.0,88009.0,0.0002]
[1769526637307,0.00450135,88020.0,88011.0,0.02487815]
[1769526637460,0.00450135,88020.0,88009.0,0.0002]
[1769526637658,0.00450135,88020.0,88007.0,0.21819504]
[1769526638064,0.00450135,88020.0,88007.0,0.02487815]
[1769526638275,0.00271483,88007.0,87992.0,0.02487815]
[1769526638474,0.00271483,88007.0,87995.0,0.19331689]
[1769526638656,0.00450135,88020.0,87992.0,0.19331689]
[1769526638855,0.00450135,88020.0,87995.0,0.02487815]
[1769526639078,0.00450135,88020.0,87998.0,0.19331689]
[1769526639283,0.00450135,88020.0,87991.0,0.11676]
[1769526639284,0.00450135,88020.0,88001.0,0.02487815]
[1769526639446,0.00450135,88020.0,87996.0,0.05682052]
[1769526639447,0.00450135,88020.0,88004.0,0.19331689]
[1769526639653,0.00450135,88020.0,88007.0,0.02487815]
[1769526639885,0.00450135,88020.0,88006.0,0.02487815]
[1769526640756,0.00450135,88020.0,87980.0,0.43952262]
[1769526640757,0.01990899,88019.0,87984.0,0.02728]
[1769526640903,0.05681493,88006.0,87985.0,0.19331689]
[1769526641105,0.34402397,88020.0,87984.0,0.02728]
[1769526641106,0.02368397,88008.0,87984.0,0.02728]
[1769526641311,0.18051177,88016.0,87989.0,0.02487815]
[1769526641536,0.02368397,88017.0,87993.0,0.19331689]
[1769526641716,0.02368397,88017.0,87994.0,0.21819504]
[1769526641928,0.02368397,88016.0,87994.0,0.21819504]
[1769526642327,0.02368397,88013.0,87994.0,0.19331689]
[1769526642558,0.02368397,88013.0,87987.0,0.02501809]
[1769526642559,0.05681139,88011.0,87987.0,0.19345683]
[1769526642764,0.02368397,88013.0,87989.0,0.19331689]
[1769526642975,0.02368397,88013.0,87992.0,0.02487815]
[1769526643128,0.00450135,88020.0,87996.0,0.02487815]
[1769526643129,0.05680624,88019.0,87996.0,0.02487815]
[1769526643494,0.00450135,88020.0,87999.0,0.21819504]
[1769526644667,0.06130723,88020.0,87999.0,0.21819504]
[1769526644866,0.00450135,88020.0,87999.0,0.21819504]
[1769526645069,0.00450135,88020.0,87988.0,0.19331689]
[1769526645070,0.05680752,88017.0,87988.0,0.19331689]
[1769526645237,0.02368397,88019.0,87991.0,0.02487815]
[1769526645436,0.02368397,88019.0,87993.0,0.02487815]
[1769526645437,0.05680746,88017.0,87993.0,0.02487815]
[1769526645653,0.05680656,88018.0,87994.0,0.21819504]
[1769526645836,0.05680755,88017.0,87994.0,0.21819504]
[1769526646064,0.05680683,88018.0,87994.0,0.21819504]
[1769526646261,0.08049036,88019.0,87994.0,0.21819504]
[1769526646262,0.02368397,88019.0,87994.0,0.21819504]
[1769526646750,0.05680906,88016.0,87994.0,0.21819504]
[1769526646953,0.08049313,88014.0,87994.0,0.19331689]
[1769526647202,0.34402397,88020.0,87988.0,0.02487815]
[1769526647346,0.34402397,88020.0,87960.0,0.53952262]
[1769526647347,0.18051177,87993.0,87961.0,0.02487815]
[1769526647708,0.18051177,87993.0,87959.0,0.00030735]
[1769526647709,0.02368397,87990.0,87963.0,0.21819504]
[1769526647842,0.05682624,87988.0,87963.0,0.21819504]
[1769526648040,0.05682685,87987.0,87963.0,0.21819504]
[1769526648261,0.02368397,87988.0,87963.0,0.19331689]
[1769526648461,0.00013989,87993.0,87965.0,0.19331689]
[1769526648635,0.05682463,87990.0,87967.0,0.21819504]
[1769526648840,0.05682434,87991.0,87967.0,0.21819504]
[1769526649043,0.00013989,87993.0,87967.0,0.21819504]
[1769526649454,0.00013989,87993.0,87959.0,0.0251855]
[1769526649455,0.18051177,87992.0,87959.0,0.0251855]
[1769526649655,0.00013989,87993.0,87960.0,0.19331689]
[1769526649900,0.00013989,87993.0,87963.0,0.02487815]
[1769526650077,0.05682435,87991.0,87966.0,0.19331689]
[1769526650271,0.05682501,87990.0,87966.0,0.21819504]
[1769526650700,0.05682474,87990.0,87966.0,0.21819504]
[1769526650923,0.05682529,87989.0,87966.0,0.21819504]
[1769526651124,0.02382386,87993.0,87959.0,0.00030735]
[1769526651351,0.02368397,87982.0,87959.0,0.00030735]
[1769526651487,0.02368397,87982.0,87959.0,0.19362424]
[1769526651890,0.33952262,87980.0,87959.0,0.19362424]
[1769526652089,0.18051177,87978.0,87959.0,0.00030735]
[1769526652329,0.05683691,87971.0,87959.0,0.00030735]
[1769526652559,0.05683947,87968.0,87959.0,0.00030735]
[1769526652845,0.05683952,87967.0,87959.0,0.00030735]
[1769526653070,0.05683952,87967.0,87929.0,0.05686394]
[1769526653071,0.18051177,87965.0,87936.0,0.21819504]
[1769526653202,0.37601626,87970.0,87930.0,0.11676]
[1769526653388,0.056848,87954.0,87930.0,0.31007689]
[1769526653598,0.05684774,87956.0,87930.0,0.31007689]
[1769526653796,0.02368397,87958.0,87930.0,0.11676]
[1769526653996,0.22735336,87969.0,87930.0,0.11676]
[1769526653997,0.05684438,87960.0,87937.0,0.19331689]
[1769526654240,0.05684466,87959.0,87937.0,0.21792178]
[1769526654423,0.00013981,87960.0,87937.0,0.21792178]
[1769526654619,0.00013981,87960.0,87938.0,0.02460489]
[1769526654821,0.00013981,87960.0,87941.0,0.18512826]
[1769526655023,0.00013981,87960.0,87944.0,0.02460489]
[1769526655379,0.02319922,87977.0,87949.0,0.18512826]
[1769526655570,0.13462095,87995.0,87949.0,0.18512826]
[1769526655571,0.0002,88046.0,87988.0,0.0568258]
[1769526655783,0.0002,88046.0,88009.0,0.02460489]
[1769526655917,0.18633484,88038.0,87991.0,0.02460489]
[1769526656118,0.33952262,88020.0,87992.0,0.13762527]
[1769526656342,0.33952262,88020.0,87993.0,0.11302038]
[1769526656545,0.33952262,88020.0,87994.0,0.11302038]
[1769526656745,0.33998918,88020.0,87995.0,0.11302038]
[1769526656949,0.33998918,88020.0,87996.0,0.11302038]
[1769526657149,0.00046656,88020.0,87997.0,0.11302038]
[1769526657554,0.00046656,88020.0,87999.0,0.02460489]
[1769526657844,0.33998918,88020.0,88000.0,0.11302038]
[1769526658054,0.0727711,88018.0,88001.0,0.11288057]
[1769526658274,0.0727711,88018.0,87990.0,0.02460489]
[1769526659555,0.52632402,88020.0,87990.0,0.02460489]
[1769526659556,0.03636198,88019.0,87990.0,0.02460489]
[1769526660174,0.1868014,88020.0,87990.0,0.08142924]
[1769526660393,0.1868014,88020.0,87990.0,0.02460489]
[1769526660591,0.03636198,88019.0,87990.0,0.02460489]
[1769526660891,0.00046656,88020.0,87990.0,0.0568241]
[1769526661092,0.00046656,88020.0,87990.0,0.03701678]
[1769526661395,0.05550868,88020.0,87990.0,0.03701678]
[1769526661598,0.18633484,88019.0,87990.0,0.03701678]
[1769526661928,0.33952262,88010.0,87986.0,0.02728]
[1769526662099,0.18633484,88009.0,87986.0,0.02728]
[1769526662462,0.03682854,88020.0,87986.0,0.02728]
[1769526662463,0.00046656,88020.0,87987.0,0.18512826]
[1769526662684,0.03636198,88019.0,87990.0,0.03701678]
[1769526662865,0.03636198,88019.0,87991.0,0.0437633]
[1769526663275,0.00046656,88020.0,87991.0,0.0437633]
[1769526663634,0.00046656,88020.0,87998.0,0.0437633]
[1769526663827,0.00046656,88020.0,88000.0,0.04368443]
[1769526663980,0.00046656,88020.0,88000.0,0.04360556]
[1769526664219,0.33952262,88050.0,88000.0,0.04360556]
[1769526664220,0.0004265,88124.0,88062.0,0.07271281]
[1769526664380,0.0005059,88154.0,88100.0,0.1]
[1769526664381,0.00046714,88117.0,88100.0,0.1]
[1769526664583,0.00046714,88117.0,88106.0,0.00593219]
[1769526665525,0.00046714,88117.0,88113.0,0.09037125]
[1769526665835,0.08175643,88157.0,88114.0,0.13555688]
[1769526665836,0.18633484,88149.0,88114.0,0.13555688]
[1769526665985,0.05447643,88142.0,88124.0,0.09032042]
[1769526666188,0.05447643,88142.0,88116.0,0.13555688]
[1769526666189,0.33952262,88140.0,88116.0,0.13555688]
[1769526666387,0.33952262,88140.0,88114.0,0.13547085]
[1769526666388,0.05447643,88127.0,88114.0,0.13547085]
[1769526666587,0.05447643,88127.0,88106.0,0.00593219]
[1769526666931,0.05447643,88113.0,88092.0,0.05492982]
[1769526667327,0.05447643,88113.0,88080.0,0.35457436]
[1769526667487,0.05447643,88113.0,88080.0,0.41400323]
[1769526667685,0.05447643,88113.0,88080.0,0.05942887]
[1769526667686,0.06559854,88113.0,88080.0,0.05942887]
[1769526667912,0.05447643,88113.0,88080.0,0.05942887]
[1769526668118,0.05461645,88113.0,88080.0,0.05942887]
[1769526668281,0.05447643,88112.0,88084.0,0.05676391]
[1769526668479,0.00014002,88113.0,88080.0,0.05942887]
[1769526668480,0.00014002,88113.0,88091.0,0.05942887]
[1769526668679,0.00014002,88113.0,88084.0,0.18512826]
[1769526668884,0.00014002,88113.0,88091.0,0.05493102]
[1769526670336,0.00014002,88113.0,88092.0,0.11248602]
[1769526670497,0.00014002,88113.0,88093.0,0.11248602]
[1769526670708,0.00014002,88113.0,88094.0,0.11248602]
[1769526670903,0.00014002,88113.0,88096.0,0.05043343]
[1769526671085,0.00014002,88113.0,88098.0,0.05043343]
[1769526671295,0.00014002,88113.0,88099.0,0.16291945]
[1769526671496,0.00014002,88113.0,88100.0,0.11248602]
[1769526671760,0.00014002,88113.0,88101.0,0.11248602]
[1769526671938,0.00014002,88113.0,88102.0,0.11248602]
[1769526672150,0.00014002,88113.0,88103.0,0.11248602]
[1769526672354,0.00014002,88113.0,88099.0,0.05043343]
[1769526672562,0.027241,88112.0,88085.0,0.11188181]
[1769526672719,0.00014002,88113.0,88086.0,0.11188181]
[1769526672920,0.00014002,88113.0,88087.0,0.11188181]
[1769526673144,0.00014002,88113.0,88084.0,0.04593588]
[1769526673349,0.00014002,88113.0,88086.0,0.04593588]
[1769526673549,0.01859931,88113.0,88089.0,0.05676024]
[1769526673747,0.00014002,88113.0,88090.0,0.04593588]
[1769526674750,0.00014002,88113.0,88085.0,0.18512826]
[1769526674751,0.00014002,88113.0,88087.0,0.11165609]
[1769526674943,0.00014002,88113.0,88092.0,0.04368723]
[1769526675370,0.18633484,88143.0,88101.0,0.04368723]
[1769526675577,0.027241,88137.0,88113.0,0.00014002]
[1769526675986,0.18647453,88143.0,88113.0,0.00014002]
[1769526676190,0.027241,88141.0,88113.0,0.00014002]
[1769526676400,0.00013969,88143.0,88114.0,0.04368723]
[1769526676599,0.00013969,88143.0,88115.0,0.04368723]
[1769526677012,0.02137155,88142.0,88115.0,0.04368723]
[1769526677210,0.02137155,88142.0,88104.0,0.18512826]
[1769526677211,0.18633484,88142.0,88104.0,0.18512826]
[1769526677372,0.05673059,88136.0,88103.0,0.03918895]
[1769526677572,0.24306542,88136.0,88103.0,0.03918895]
[1769526677814,0.21065535,88136.0,88103.0,0.03918895]
[1769526678041,0.02432051,88136.0,88103.0,0.03918895]
[1769526678272,0.05672695,88142.0,88104.0,0.03918895]
[1769526678448,0.18633484,88141.0,88104.0,0.03918895]
[1769526678786,0.18633484,88131.0,88104.0,0.03918895]
[1769526679015,0.02703081,88130.0,88104.0,0.03918895]
[1769526679222,0.05673041,88137.0,88104.0,0.03918895]
[1769526679442,0.027241,88135.0,88104.0,0.03918895]
[1769526680553,0.18633484,88137.0,88104.0,0.09593991]
[1769526680782,0.027241,88135.0,88101.0,0.03469091]
[1769526680996,0.18633484,88134.0,88101.0,0.03469091]
[1769526681222,0.18633484,88134.0,88095.0,0.11664]
[1769526681223,0.23510148,88227.0,88136.0,0.18512826]
[1769526681417,0.23510148,88227.0,88134.0,0.01]
[1769526681418,0.00013966,88171.0,88141.0,0.03019286]
[1769526681641,0.00013966,88171.0,88143.0,0.03019286]
[1769526681866,0.00013966,88171.0,88151.0,0.03019286]
[1769526682239,0.03772983,88177.0,88161.0,0.03019286]
[1769526682443,0.03772983,88177.0,88162.0,0.03019286]
[1769526682647,0.29204018,88206.0,88165.0,0.03019286]
[1769526683168,0.05444584,88184.0,88165.0,0.03019286]
[1769526683382,0.05444584,88184.0,88161.0,0.00013966]
[1769526683716,0.000102,88185.0,88161.0,0.00013966]
[1769526684473,0.000102,88185.0,88162.0,0.02787435]
[1769526684707,0.000102,88185.0,88170.0,0.33952262]
[1769526684907,0.000102,88185.0,88161.0,0.00013966]
[1769526684908,0.0043,88210.0,88181.0,0.02452415]
[1769526685027,0.0043,88210.0,88188.0,0.33952262]
[1769526685231,0.0043,88210.0,88199.0,0.02452415]
[1769526685460,0.0043,88210.0,88198.0,0.00291227]
[1769526685461,0.24300962,88259.0,88218.0,0.02529385]
[1769526685665,0.24300962,88259.0,88218.0,0.14189385]
[1769526685860,0.33952262,88250.0,88218.0,0.02452415]
[1769526686065,0.24300962,88259.0,88218.0,0.02452415]
[1769526686066,0.05665999,88246.0,88218.0,0.02452415]
[1769526686278,0.00056572,88236.0,88218.0,0.02452415]
[1769526686515,0.00056572,88236.0,88218.0,0.02432415]
[1769526686687,0.00056572,88236.0,88218.0,0.02274733]
[1769526686863,0.05444584,88231.0,88198.0,0.1166]
[1769526687045,0.05444584,88231.0,88194.0,0.02452415]
[1769526687046,0.05444584,88231.0,88197.0,0.1166]
[1769526687309,0.00056572,88236.0,88194.0,0.02452415]
[1769526687310,0.00056572,88236.0,88200.0,0.33952262]
[1769526687509,0.00056572,88236.0,88210.0,0.33952262]
[1769526687828,0.00056572,88236.0,88211.0,0.11656]
[1769526688002,0.00056572,88236.0,88212.0,0.11656]
[1769526688864,0.00056572,88236.0,88209.0,0.02452415]
[1769526689072,0.00056572,88236.0,88210.0,0.11656]
[1769526689492,0.00056572,88236.0,88209.0,0.02452415]
[1769526689695,0.00056572,88236.0,88210.0,0.11656]
[1769526690309,0.00056572,88236.0,88210.0,0.14108415]
[1769526690513,0.05666795,88234.0,88210.0,0.14108415]
[1769526690713,0.00056572,88236.0,88210.0,0.02452415]
[1769526690874,0.00056572,88236.0,88207.0,0.25303463]
[1769526691089,0.00056572,88236.0,88191.0,0.11168384]
[1769526691090,0.33952262,88220.0,88195.0,0.02724]
[1769526691305,0.33952262,88220.0,88158.0,0.22592814]
[1769526691306,0.33952262,88220.0,88187.0,0.11652]
[1769526691505,0.02720379,88233.0,88187.0,0.11652]
[1769526691506,0.24300962,88229.0,88187.0,0.11652]
[1769526691861,0.24300962,88229.0,88180.0,0.11168384]
[1769526691862,0.24300962,88227.0,88186.0,0.11652]
[1769526692063,0.24300962,88227.0,88187.0,0.11652]
[1769526692064,0.05667836,88218.0,88187.0,0.11652]
[1769526692269,0.05667822,88218.0,88187.0,0.11652]
[1769526692387,0.05667979,88215.0,88187.0,0.11652]
[1769526692593,0.33952262,88210.0,88165.0,0.02452415]
[1769526692809,0.05669462,88192.0,88165.0,0.02452415]
[1769526693015,0.02492128,88215.0,88170.0,0.33952262]
[1769526693262,0.02492128,88215.0,88192.0,0.00981917]
[1769526693565,0.24300962,88222.0,88192.0,0.00981917]
[1769526693566,0.05667583,88222.0,88192.0,0.00981917]
[1769526693723,0.02492128,88226.0,88192.0,0.00981917]
[1769526693925,0.00046572,88226.0,88192.0,0.00981917]
[1769526694128,0.00046572,88226.0,88193.0,0.11652]
[1769526694473,0.00046572,88226.0,88194.0,0.02452415]
[1769526694708,0.00046572,88226.0,88196.0,0.02452415]
[1769526695051,0.00046572,88226.0,88198.0,0.02452415]
[1769526695256,0.00046572,88226.0,88199.0,0.27755878]
[1769526695726,0.00046572,88226.0,88201.0,0.25303463]
[1769526695923,0.02492128,88250.0,88201.0,0.25303463]
[1769526695924,0.05666582,88237.0,88201.0,0.25303463]
[1769526696152,0.05666816,88233.0,88204.0,0.02452415]
[1769526696353,0.00023963,88236.0,88204.0,0.02452415]
[1769526696559,0.05666993,88231.0,88202.0,0.11652]
[1769526696702,0.05666962,88231.0,88202.0,0.11652]
[1769526697035,0.05667378,88225.0,88202.0,0.11652]
[1769526697232,0.22667875,88231.0,88202.0,0.11652]
[1769526697388,0.05667297,88226.0,88202.0,0.11652]
[1769526697594,0.05667347,88225.0,88202.0,0.11652]
[1769526698022,0.05690648,88236.0,88193.0,0.25303463]
[1769526698023,0.00023963,88236.0,88193.0,0.25303463]
[1769526698191,0.05667221,88227.0,88195.0,0.25303463]
[1769526698410,0.0566721,88227.0,88195.0,0.25303463]
[1769526698610,0.05667251,88228.0,88195.0,0.27755878]
[1769526698810,0.00023963,88236.0,88198.0,0.02452415]
[1769526699334,0.05667385,88225.0,88198.0,0.27755878]
[1769526699966,0.05666814,88233.0,88199.0,0.11648]
[1769526700175,0.33789452,88230.0,88181.0,0.110295]
[1769526700338,0.33789452,88230.0,88170.0,0.55863052]
[1769526700339,0.2679309,88229.0,88183.0,0.25303463]
[1769526700543,0.05667575,88222.0,88185.0,0.25303463]
[1769526700757,0.2679309,88229.0,88187.0,0.02452415]
[1769526700956,0.05667889,88217.0,88189.0,0.02452415]
[1769526701198,0.2679309,88229.0,88189.0,0.02452415]
[1769526701539,0.2679309,88229.0,88178.0,0.25303463]
[1769526701540,0.24300962,88222.0,88178.0,0.25303463]
[1769526701658,0.02720379,88225.0,88182.0,0.11648]
[1769526701659,0.24300962,88219.0,88182.0,0.11648]